{"text_format":"1","workbook":"xlsx","n_sheets":1,"sheets":["Calculator împrumut"],"not_rendered":{"charts":0,"images":0,"macros":0,"external_links":0,"defined_names":9,"comments":0,"pivot_tables":0},"unopened":[],"bounds":{"document_bytes":16777216,"sheet_cells":100000,"rows_first":2000,"rows_last":500,"rows_between":2000,"halvings":0,"cell_chars":16384,"cell_head_chars":4096},"cells_cut":0,"cells_raw":0,"read":"whole","date_system":"1900"}

{"sheet":"Calculator împrumut","index":0,"n_rows":22,"n_cols":13,"rows_kept":22,"cut":false,"hidden":false,"merged":[[10,6,10,8],[10,2,10,5],[18,2,18,12],[10,9,10,12],[2,1,2,3],[1,6,2,8],[1,11,2,12],[1,1,1,3],[6,5,6,6],[7,5,7,6]]}
[]
[null,"ÎMPRUMUT DE STUDII",null,null,null,null,50000,null,null,null,null,"2011-05-10"]
[null,"CALCULATOR"]
[]
[null," Se sugerează ca returnările lunare totale ale împrumutului de studii să nu depăşească 8% din salariu anual pe primul an."]
[]
[null,null,"Plata dvs. lunară combinată curentă este:",null,null,{"$f":"ÎmprumuturiStudii[[#Totals],[Plată lunară curentă]]","v":328.58590726058833},null,null,"Plata dvs. lunară combinată planificată este:",null,null,null,{"$f":"ÎmprumuturiStudii[[#Totals],[Plată planificată]]","v":328.58590726058833}]
[null,null,"Procent din venitul lunar:",null,null,{"$f":"ÎmprumuturiStudii[[#Totals],[Plată lunară curentă]]/SalariuLunarEstimat","v":7.8860617742541189E-2},null,null,"  Procent din venitul lunar:",null,null,null,{"$f":"ÎmprumuturiStudii[[#Totals],[Plată planificată]]/SalariuLunarEstimat","v":7.8860617742541189E-2}]
[]
[]
[null,null,"DETALII GENERALE ÎMPRUMUT",null,null,null,"DATE RETURNARE ÎMPRUMUT",null,null,"DETALII PLATĂ"]
[null,null,"Împrumut nr.","Creditor","Valoare împrumut","Rata anuală a dobânzii","Data de început","Lungime (Ani)","Data de sfârşit","Plată lunară curentă","Dobândă totală","Plată planificată","Plată anuală"]
[null,null,"10998M88","Creditor 1",10000,0.05,"2011-04-01",10,{"$f":"IF(AND(ÎmprumuturiStudii[[#This Row],[Data de început]]>0,ÎmprumuturiStudii[[#This Row],[Lungime (Ani)]]>0),EDATE(ÎmprumuturiStudii[[#This Row],[Data de început]],ÎmprumuturiStudii[[#This Row],[Lungime (Ani)]]*12),\"\")","v":"2021-04-01"},{"$f":"IF(AND(ÎmprumutStartLAzi,COUNT(ÎmprumuturiStudii[[#This Row],[Valoare împrumut]]:ÎmprumuturiStudii[[#This Row],[Lungime (Ani)]])=4,ÎmprumuturiStudii[[#This Row],[Data de început]]<TODAY()),PMT(ÎmprumuturiStudii[[#This Row],[Rata anuală a dobânzii]]/12,ÎmprumuturiStudii[[#This Row],[Lungime (Ani)]]*12,-ÎmprumuturiStudii[[#This Row],[Valoare împrumut]],0,0),\"\")","v":106.06551523907524},{"$f":"IFERROR((ÎmprumuturiStudii[[#This Row],[Plată planificată]]*(ÎmprumuturiStudii[[#This Row],[Lungime (Ani)]]*12))-ÎmprumuturiStudii[[#This Row],[Valoare împrumut]],\"\")","v":2727.8618286890287},{"$f":"IF(COUNTA(ÎmprumuturiStudii[[#This Row],[Valoare împrumut]]:ÎmprumuturiStudii[[#This Row],[Lungime (Ani)]])<>4,\"\",PMT(ÎmprumuturiStudii[[#This Row],[Rata anuală a dobânzii]]/12,ÎmprumuturiStudii[[#This Row],[Lungime (Ani)]]*12,-ÎmprumuturiStudii[[#This Row],[Valoare împrumut]],0,0))","v":106.06551523907524},{"$f":"IFERROR(ÎmprumuturiStudii[[#This Row],[Plată planificată]]*12,\"\")","v":1272.7861828689029}]
[null,null,"20987N87","Creditor 2",8000,0.05,"2011-05-01",10,{"$f":"IF(AND(ÎmprumuturiStudii[[#This Row],[Data de început]]>0,ÎmprumuturiStudii[[#This Row],[Lungime (Ani)]]>0),EDATE(ÎmprumuturiStudii[[#This Row],[Data de început]],ÎmprumuturiStudii[[#This Row],[Lungime (Ani)]]*12),\"\")","v":"2021-05-01"},{"$f":"IF(AND(ÎmprumutStartLAzi,COUNT(ÎmprumuturiStudii[[#This Row],[Valoare împrumut]]:ÎmprumuturiStudii[[#This Row],[Lungime (Ani)]])=4,ÎmprumuturiStudii[[#This Row],[Data de început]]<TODAY()),PMT(ÎmprumuturiStudii[[#This Row],[Rata anuală a dobânzii]]/12,ÎmprumuturiStudii[[#This Row],[Lungime (Ani)]]*12,-ÎmprumuturiStudii[[#This Row],[Valoare împrumut]],0,0),\"\")","v":84.852412191260186},{"$f":"IFERROR((ÎmprumuturiStudii[[#This Row],[Plată planificată]]*(ÎmprumuturiStudii[[#This Row],[Lungime (Ani)]]*12))-ÎmprumuturiStudii[[#This Row],[Valoare împrumut]],\"\")","v":2182.289462951223},{"$f":"IF(COUNTA(ÎmprumuturiStudii[[#This Row],[Valoare împrumut]]:ÎmprumuturiStudii[[#This Row],[Lungime (Ani)]])<>4,\"\",PMT(ÎmprumuturiStudii[[#This Row],[Rata anuală a dobânzii]]/12,ÎmprumuturiStudii[[#This Row],[Lungime (Ani)]]*12,-ÎmprumuturiStudii[[#This Row],[Valoare împrumut]],0,0))","v":84.852412191260186},{"$f":"IFERROR(ÎmprumuturiStudii[[#This Row],[Plată planificată]]*12,\"\")","v":1018.2289462951222}]
[null,null,"36785LM","Creditor 3",6000,4.4999999999999998E-2,"2012-03-01",10,{"$f":"IF(AND(ÎmprumuturiStudii[[#This Row],[Data de început]]>0,ÎmprumuturiStudii[[#This Row],[Lungime (Ani)]]>0),EDATE(ÎmprumuturiStudii[[#This Row],[Data de început]],ÎmprumuturiStudii[[#This Row],[Lungime (Ani)]]*12),\"\")","v":"2022-03-01"},{"$f":"IF(AND(ÎmprumutStartLAzi,COUNT(ÎmprumuturiStudii[[#This Row],[Valoare împrumut]]:ÎmprumuturiStudii[[#This Row],[Lungime (Ani)]])=4,ÎmprumuturiStudii[[#This Row],[Data de început]]<TODAY()),PMT(ÎmprumuturiStudii[[#This Row],[Rata anuală a dobânzii]]/12,ÎmprumuturiStudii[[#This Row],[Lungime (Ani)]]*12,-ÎmprumuturiStudii[[#This Row],[Valoare împrumut]],0,0),\"\")","v":62.183045254209183},{"$f":"IFERROR((ÎmprumuturiStudii[[#This Row],[Plată planificată]]*(ÎmprumuturiStudii[[#This Row],[Lungime (Ani)]]*12))-ÎmprumuturiStudii[[#This Row],[Valoare împrumut]],\"\")","v":1461.9654305051017},{"$f":"IF(COUNTA(ÎmprumuturiStudii[[#This Row],[Valoare împrumut]]:ÎmprumuturiStudii[[#This Row],[Lungime (Ani)]])<>4,\"\",PMT(ÎmprumuturiStudii[[#This Row],[Rata anuală a dobânzii]]/12,ÎmprumuturiStudii[[#This Row],[Lungime (Ani)]]*12,-ÎmprumuturiStudii[[#This Row],[Valoare împrumut]],0,0))","v":62.183045254209183},{"$f":"IFERROR(ÎmprumuturiStudii[[#This Row],[Plată planificată]]*12,\"\")","v":746.19654305051017}]
[null,null,"765R43","Creditor 4",4000,0.05,"2012-05-01",5,{"$f":"IF(AND(ÎmprumuturiStudii[[#This Row],[Data de început]]>0,ÎmprumuturiStudii[[#This Row],[Lungime (Ani)]]>0),EDATE(ÎmprumuturiStudii[[#This Row],[Data de început]],ÎmprumuturiStudii[[#This Row],[Lungime (Ani)]]*12),\"\")","v":"2017-05-01"},{"$f":"IF(AND(ÎmprumutStartLAzi,COUNT(ÎmprumuturiStudii[[#This Row],[Valoare împrumut]]:ÎmprumuturiStudii[[#This Row],[Lungime (Ani)]])=4,ÎmprumuturiStudii[[#This Row],[Data de început]]<TODAY()),PMT(ÎmprumuturiStudii[[#This Row],[Rata anuală a dobânzii]]/12,ÎmprumuturiStudii[[#This Row],[Lungime (Ani)]]*12,-ÎmprumuturiStudii[[#This Row],[Valoare împrumut]],0,0),\"\")","v":75.484934576043742},{"$f":"IFERROR((ÎmprumuturiStudii[[#This Row],[Plată planificată]]*(ÎmprumuturiStudii[[#This Row],[Lungime (Ani)]]*12))-ÎmprumuturiStudii[[#This Row],[Valoare împrumut]],\"\")","v":529.09607456262438},{"$f":"IF(COUNTA(ÎmprumuturiStudii[[#This Row],[Valoare împrumut]]:ÎmprumuturiStudii[[#This Row],[Lungime (Ani)]])<>4,\"\",PMT(ÎmprumuturiStudii[[#This Row],[Rata anuală a dobânzii]]/12,ÎmprumuturiStudii[[#This Row],[Lungime (Ani)]]*12,-ÎmprumuturiStudii[[#This Row],[Valoare împrumut]],0,0))","v":75.484934576043742},{"$f":"IFERROR(ÎmprumuturiStudii[[#This Row],[Plată planificată]]*12,\"\")","v":905.8192149125249}]
[null,null,"Total",null,{"$f":"SUBTOTAL(109,ÎmprumuturiStudii[Valoare împrumut])","v":28000},null,null,null,null,{"$f":"SUBTOTAL(109,ÎmprumuturiStudii[Plată lunară curentă])","v":328.58590726058833},{"$f":"SUBTOTAL(109,ÎmprumuturiStudii[Dobândă totală])","v":6901.2127967079778},{"$f":"SUBTOTAL(109,ÎmprumuturiStudii[Plată planificată])","v":328.58590726058833},{"$f":"SUBTOTAL(109,ÎmprumuturiStudii[Plată anuală])","v":3943.0308871270599}]
[null,null,"Medii",null,{"$f":"AVERAGE(ÎmprumuturiStudii[Valoare împrumut])","v":7000},{"$f":"AVERAGE(ÎmprumuturiStudii[Rata anuală a dobânzii])","v":4.8750000000000002E-2},null,null,null,null,{"$f":"AVERAGE(ÎmprumuturiStudii[Dobândă totală])","v":1725.3031991769944},null,{"$f":"AVERAGE(ÎmprumuturiStudii[Plată anuală])","v":985.75772178176499}]
[]
[null,null,null,null,null,null,null,null,null,null,"Returnare totală împrumuturi unificate:",null,{"$f":"ÎmprumuturiStudii[[#Totals],[Valoare împrumut]]+ÎmprumuturiStudii[[#Totals],[Dobândă totală]]","v":34901.21279670798}]
[]
[null,null,null,null,null,null,null,null,null,null,"Venit lunar estimat după absolvire:",null,{"$f":"(SalariuAnualEstimat/12)","v":4166.666666666667}]